[Event "Irish New Year Events-GM 2020"]
[Site "Dublin"]
[Date "2020.01.04"]
[Round "5.1"]
[White "Li, Henry"]
[Black "Pert, Nicholas"]
[Result "1/2-1/2"]
[ECO "B32"]
[WhiteElo "2288"]
[BlackElo "2558"]
[Annotator "RC"]
[PlyCount "93"]
[EventDate "2020.01.02"]
[EventType "tourn"]
[EventCountry "IRL"]
[SourceTitle "playchess.com"]
[Source "ChessBase"]
[SourceQuality "1"]
[TimeControl "5400+30"]

1. e4 {[%emt 0:00:32]} c5 {[%emt 0:00:00]} 2. Nf3 {[%emt 0:00:14]} Nc6 {[%emt 0:00:00]} 3. d4 {[%emt 0:00:07]} cxd4 {[%emt 0:00:00]} 4. Nxd4 {[%emt 0:00:05]} e5 {[%emt 0:00:00]} 5. Nb5 {[%emt 0:00:28]} d6 {[%emt 0:00:03]} 6. N1c3 {[%emt 0:00:31]} a6 {[%emt 0:00:07]} 7. Na3 {[%emt 0:00:10]} Be7 {[%emt 0:00:14]} 8. Be3 {[%emt 0:03:09]} Nf6 {[%emt 0:03:10]} 9. Nc4 {[%emt 0:00:55]} b5 {[%emt 0:00:53]} 10. Nb6 {[%emt 0:00:13]} Rb8 {[%emt 0:00:08]} 11. Nxc8 {[%emt 0:00:13]} Qxc8 {[%emt 0:00:04]} 12. Be2 {[%emt 0:00:42]} O-O {[%emt 0:00:58]} 13. O-O {[%emt 0:00:08]} b4 {[%emt 0:03:10]} 14. Nd5 {[%emt 0:00:10]} Nxe4 {[%emt 0:00:10]} 15. a4 {[%emt 0:00:07]} a5 {[%emt 0:02:03]} 16. Bb5 {[%emt 0:07:49]} Bd8 {[%emt 0:01:47]} 17. Rc1 {[%emt 0:19:09]} Ne7 {[%emt 0:02:36]} 18. c3 {[%emt 0:04:57]} bxc3 {[%emt 0:04:35]} 19. f3 {[%emt 0:02:45]} Nxd5 {[%emt 0:17:03]} 20. Qxd5 {[%emt 0:00:26]} Nf6 {[%emt 0:00:08]} 21. Qxd6 {[%emt 0:01:59]} Bc7 {[%emt 0:00:39]} 22. Qa3 {[%emt 0:02:33]} Nd5 {[%emt 0:07:29]} 23. Bc5 {[%emt 0:03:05]} Bb6 {[%emt 0:09:33]} 24. Bxb6 {[%emt 0:00:17]} Rxb6 {[%emt 0:00:03]} 25. Rfd1 {[%emt 0:07:20]} Rd8 {[%emt 0:06:39]} 26. bxc3 {[%emt 0:03:36]} h5 {[%emt 0:02:08]} 27. Rd2 {[%emt 0:08:02]} Ne3 {[%emt 0:10:36]} 28. Re2 {[%emt 0:02:57]} Nc4 {[%emt 0:01:06]} 29. Qa2 {[%emt 0:05:32]} Qc5+ {[%emt 0:01:30]} 30. Kh1 {[%emt 0:00:12]} Na3 {[%emt 0:01:21]} 31. c4 {[%emt 0:06:13]} Rbd6 {[%emt 0:02:19]} 32. Qa1 {[%emt 0:00:54]} Rd4 {[%emt 0:01:51]} 33. h3 {[%emt 0:01:15]} f6 {[%emt 0:02:04]} 34. Ra2 {[%emt 0:03:22]} Rd2 {[%emt 0:04:44]} 35. Rxd2 {[%emt 0:00:39]} Rxd2 {[%emt 0:00:06]} 36. Qc3 {[%emt 0:05:24]} Qf2 {[%emt 0:01:54]} 37. Rg1 {[%emt 0:00:05]} Nc2 {[%emt 0:00:10]} 38. c5 {[%emt 0:01:41]} Ne3 {[%emt 0:12:03]} 39. c6 {[%emt 0:02:12]} Rd1 {[%emt 0:01:21]} 40. Qb3+ {[%emt 0:01:16]} Kh7 {[%emt 0:02:24]} 41. Qxd1 {[%emt 0:01:44]} Nxd1 {[%emt 0:00:04]} 42. Rxd1 {[%emt 0:00:19]} Qc5 {[%emt 0:00:14]} 43. Kh2 {[%emt 0:04:31]} f5 {[%emt 0:01:01]} 44. Rd7 {[%emt 0:04:02]} e4 {[%emt 0:03:32]} 45. fxe4 fxe4 {[%emt 0:00:30]} 46. c7 {[%emt 0:01:00]} e3 {[%emt 0:00:30]} 47. Ba6 {[%emt 0:00:00]} 1/2-1/2

[Event "Irish New Year Events-GM 2020"]
[Site "Dublin"]
[Date "2020.01.04"]
[Round "5.2"]
[White "Fitzsimons, David"]
[Black "Pajeken, Jakob Leon"]
[Result "1/2-1/2"]
[ECO "C48"]
[WhiteElo "2317"]
[BlackElo "2327"]
[Annotator "NA"]
[PlyCount "52"]
[EventDate "2020.01.02"]
[EventType "tourn"]
[EventCountry "IRL"]
[SourceTitle "playchess.com"]
[Source "ChessBase"]
[SourceQuality "1"]
[TimeControl "5400+30"]

1. e4 {[%emt 0:00:00]} e5 {[%emt 0:00:00]} 2. Nf3 {[%emt 0:00:00]} Nc6 {[%emt 0:00:00]} 3. Nc3 {[%emt 0:00:05]} Nf6 {[%emt 0:00:05]} 4. Bb5 {[%emt 0:00:15]} Bd6 {[%emt 0:00:19]} 5. d3 {[%emt 0:00:11]} h6 {[%emt 0:01:25]} 6. a3 {[%emt 0:00:20]} a6 {[%emt 0:00:58]} 7. Ba4 {[%emt 0:00:51]} b5 {[%emt 0:16:15]} 8. Bb3 {[%emt 0:00:33]} Bb7 {[%emt 0:04:54]} 9. h3 {[%emt 0:03:18]} Be7 {[%emt 0:05:45]} 10. Bd2 {[%emt 0:06:57]} d6 {[%emt 0:02:24]} 11. Nd5 {[%emt 0:00:41]} Nxd5 {[%emt 0:01:19]} 12. Bxd5 {[%emt 0:00:49]} Bf6 {[%emt 0:03:18]} 13. a4 {[%emt 0:08:53]} Qc8 {[%emt 0:03:10]} 14. c4 {[%emt 0:08:26]} Na7 {[%emt 0:08:11]} 15. cxb5 {[%emt 0:09:54]} axb5 {[%emt 0:01:57]} 16. Qb3 {[%emt 0:02:21]} O-O {[%emt 0:01:19]} 17. axb5 {[%emt 0:05:41]} Nxb5 {[%emt 0:00:51]} 18. O-O {[%emt 0:00:37]} c6 {[%emt 0:02:32]} 19. Rxa8 {[%emt 0:01:39]} Qxa8 {[%emt 0:01:05]} 20. Bc4 {[%emt 0:00:10]} Nc7 {[%emt 0:05:17]} 21. Bb4 {[%emt 0:05:02]} c5 {[%emt 0:03:42]} 22. Bc3 {[%emt 0:00:25]} Bc6 {[%emt 0:05:57]} 23. Qb6 {[%emt 0:03:30]} Ne6 {[%emt 0:02:25]} 24. b4 {[%emt 0:07:10]} Rb8 {[%emt 0:03:39]} 25. Qa5 {[%emt 0:00:16]} cxb4 {[%emt 0:01:03]} 26. Bxb4 {[%emt 0:00:05]} Qxa5 {[%emt 0:01:31]} 1/2-1/2

[Event "Irish New Year Events-GM 2020"]
[Site "Dublin"]
[Date "2020.01.04"]
[Round "5.3"]
[White "Astaneh Lopez, Alex"]
[Black "Turner, Matthew J"]
[Result "1/2-1/2"]
[ECO "A39"]
[WhiteElo "2432"]
[BlackElo "2521"]
[Annotator "ChessBase"]
[PlyCount "28"]
[EventDate "2020.01.02"]
[EventType "tourn"]
[EventCountry "IRL"]
[SourceTitle "playchess.com"]
[Source "ChessBase"]
[SourceQuality "1"]
[TimeControl "5400+30"]

1. Nf3 {[%emt 0:03:08]} Nf6 {[%emt 0:00:00]} 2. g3 {[%emt 0:00:19]} c5 {[%emt 0:05:05]} 3. Bg2 {[%emt 0:00:29]} Nc6 {[%emt 0:00:05]} 4. c4 {[%emt 0:01:02]} g6 {[%emt 0:01:32]} 5. O-O {[%emt 0:01:55]} Bg7 {[%emt 0:00:04]} 6. d4 {[%emt 0:00:07]} cxd4 {[%emt 0:03:43]} 7. Nxd4 {[%emt 0:00:14]} O-O {[%emt 0:00:37]} 8. Nc3 {[%emt 0:01:08]} Nxd4 {[%emt 0:00:45]} 9. Qxd4 {[%emt 0:00:06]} d6 {[%emt 0:00:04]} 10. Qh4 {[%emt 0:04:51]} Rb8 {[%emt 0:04:17]} 11. Rd1 {[%emt 0:04:37]} Qa5 {[%emt 0:02:52]} 12. Bd2 {[%emt 0:03:54]} Qf5 {[%emt 0:06:55]} 13. e4 {[%emt 0:05:52]} Qg4 {[%emt 0:00:40]} 14. Qxg4 {[%emt 0:00:53]} Bxg4 {[%emt 1:10:21]} 1/2-1/2

[Event "Irish New Year Events-GM 2020"]
[Site "Dublin"]
[Date "2020.01.04"]
[Round "5.5"]
[White "Brady, Stephen"]
[Black "Kosten, Anthony C."]
[Result "1/2-1/2"]
[ECO "C54"]
[WhiteElo "2285"]
[BlackElo "2402"]
[Annotator "ChessBase"]
[PlyCount "85"]
[EventDate "2020.01.02"]
[EventType "tourn"]
[EventCountry "IRL"]
[SourceTitle "playchess.com"]
[Source "ChessBase"]
[SourceQuality "1"]
[TimeControl "5400+30"]

1. e4 {[%emt 0:00:01]} e5 {[%emt 0:00:10]} 2. Nf3 {[%emt 0:00:05]} Nc6 {[%emt 0:00:05]} 3. Bc4 {[%emt 0:00:05]} Bc5 {[%emt 0:00:13]} 4. c3 {[%emt 0:00:06]} Nf6 {[%emt 0:00:10]} 5. d3 {[%emt 0:00:12]} O-O {[%emt 0:01:42]} 6. Nbd2 {[%emt 0:01:23]} a6 {[%emt 0:02:42]} 7. Bb3 {[%emt 0:00:43]} d5 {[%emt 0:01:11]} 8. Qe2 {[%emt 0:10:22]} Ba7 {[%emt 0:06:41]} 9. h3 {[%emt 0:13:15]} h6 {[%emt 0:02:11]} 10. O-O {[%emt 0:05:10]} Re8 {[%emt 0:03:31]} 11. Rd1 {[%emt 0:07:51]} Be6 {[%emt 0:13:04]} 12. Nf1 {[%emt 0:03:14]} Qe7 {[%emt 0:01:34]} 13. Ng3 {[%emt 0:05:02]} Rad8 {[%emt 0:03:41]} 14. Be3 {[%emt 0:10:41]} Bxe3 {[%emt 0:07:41]} 15. Qxe3 {[%emt 0:01:51]} Na5 {[%emt 0:06:36]} 16. Bxd5 {[%emt 0:13:13]} Nxd5 {[%emt 0:09:10]} 17. exd5 {[%emt 0:00:07]} Bxd5 {[%emt 0:00:18]} 18. Re1 {[%emt 0:04:26]} Nc6 {[%emt 0:00:22]} 19. b3 {[%emt 0:03:38]} Qd7 {[%emt 0:00:56]} 20. Rad1 {[%emt 0:10:38]} Re6 {[%emt 0:02:32]} 21. Nh4 {[%emt 0:02:13]} Ne7 {[%emt 0:04:47]} 22. d4 {[%emt 0:01:47]} exd4 {[%emt 0:03:06]} 23. Qxd4 {[%emt 0:00:08]} Rxe1+ {[%emt 0:00:32]} 24. Rxe1 {[%emt 0:00:04]} Be6 {[%emt 0:00:33]} 25. Nf3 {[%emt 0:00:34]} Nc6 {[%emt 0:01:20]} 26. Qf4 {[%emt 0:01:18]} Qd6 {[%emt 0:03:28]} 27. Qxd6 {[%emt 0:03:26]} Rxd6 {[%emt 0:00:20]} 28. Kf1 {[%emt 0:01:41]} Rd3 {[%emt 0:00:54]} 29. Re3 {[%emt 0:00:04]} Rxe3 {[%emt 0:04:01]} 30. fxe3 {[%emt 0:00:01]} Bd7 {[%emt 0:02:10]} 31. Ke2 {[%emt 0:00:19]} Kf8 {[%emt 0:04:08]} 32. e4 {[%emt 0:00:06]} g6 {[%emt 0:01:20]} 33. Ke3 {[%emt 0:00:13]} Ke7 {[%emt 0:01:03]} 34. Ne2 {[%emt 0:00:06]} Kd6 {[%emt 0:03:31]} 35. b4 {[%emt 0:00:54]} Ne5 {[%emt 0:01:04]} 36. Nxe5 {[%emt 0:00:27]} Kxe5 {[%emt 0:00:09]} 37. Nf4 {[%emt 0:00:24]} Bb5 {[%emt 0:01:38]} 38. h4 {[%emt 0:00:01]} g5 {[%emt 0:03:16]} 39. hxg5 {[%emt 0:00:06]} hxg5 {[%emt 0:00:05]} 40. Nh3 {[%emt 0:00:18]} f6 {[%emt 0:00:30]} 41. Nf2 {[%emt 0:00:06]} b6 {[%emt 0:01:25]} 42. Ng4+ {[%emt 0:00:15]} Ke6 {[%emt 0:00:07]} 43. g3 {[%emt 0:01:10]} 1/2-1/2

[Event "Irish New Year Events-GM 2020"]
[Site "Dublin"]
[Date "2020.01.05"]
[Round "6.2"]
[White "Turner, Matthew J"]
[Black "Kosten, Anthony C."]
[Result "1-0"]
[ECO "C67"]
[WhiteElo "2521"]
[BlackElo "2402"]
[Annotator "ChessBase"]
[PlyCount "83"]
[EventDate "2020.01.02"]
[EventType "tourn"]
[EventCountry "IRL"]
[SourceTitle "playchess.com"]
[Source "ChessBase"]
[SourceQuality "1"]
[TimeControl "40/5400+30:1800+30"]

1. e4 {[%emt 0:00:00]} e5 {[%emt 0:00:00]} 2. Nf3 {[%emt 0:00:00]} Nc6 {[%emt 0:00:00]} 3. Bb5 {[%emt 0:00:05]} Nf6 {[%emt 0:09:19]} 4. O-O {[%emt 0:07:39]} Nxe4 {[%emt 0:00:10]} 5. Re1 {[%emt 0:00:20]} Nd6 {[%emt 0:00:30]} 6. Nxe5 {[%emt 0:00:25]} Be7 {[%emt 0:00:07]} 7. Bf1 {[%emt 0:01:01]} Nxe5 {[%emt 0:01:17]} 8. Rxe5 {[%emt 0:00:06]} O-O {[%emt 0:00:09]} 9. d4 {[%emt 0:00:26]} b6 {[%emt 0:04:50]} 10. Nc3 {[%emt 0:05:05]} Bb7 {[%emt 0:09:02]} 11. Bf4 {[%emt 0:04:36]} f5 {[%emt 0:08:52]} 12. Nd5 {[%emt 0:04:40]} Bxd5 {[%emt 0:25:02]} 13. Rxd5 {[%emt 0:00:17]} g6 {[%emt 0:00:19]} 14. Re5 {[%emt 0:13:14]} Nf7 {[%emt 0:00:48]} 15. Re1 {[%emt 0:00:57]} Bd6 {[%emt 0:02:08]} 16. Qf3 {[%emt 0:00:42]} Qf6 {[%emt 0:02:42]} 17. Bc4 {[%emt 0:03:07]} Qxd4 {[%emt 0:13:58]} 18. Bxd6 {[%emt 0:02:53]} cxd6 {[%emt 0:02:53]} 19. Qb3 {[%emt 0:04:15]} Rac8 {[%emt 0:01:06]} 20. Bd5 {[%emt 0:04:46]} Qf6 {[%emt 0:00:21]} 21. c3 {[%emt 0:00:48]} Kg7 {[%emt 0:01:55]} 22. Qa4 {[%emt 0:00:38]} Rc7 {[%emt 0:01:29]} 23. f4 {[%emt 0:01:46]} g5 {[%emt 0:01:45]} 24. Rad1 {[%emt 0:02:03]} gxf4 {[%emt 0:00:54]} 25. Bxf7 {[%emt 0:00:25]} Rxf7 {[%emt 0:00:26]} 26. Qxf4 {[%emt 0:00:11]} Rc6 {[%emt 0:01:15]} 27. Rd3 {[%emt 0:02:56]} Kf8 {[%emt 0:02:30]} 28. Rd5 {[%emt 0:03:49]} a6 {[%emt 0:02:24]} 29. a4 {[%emt 0:00:41]} Qg6 {[%emt 0:00:24]} 30. Re3 {[%emt 0:03:35]} Qg4 {[%emt 0:01:07]} 31. Qh6+ {[%emt 0:00:23]} Qg7 {[%emt 0:00:10]} 32. Qh4 {[%emt 0:00:45]} Qf6 {[%emt 0:00:41]} 33. Qf4 {[%emt 0:00:19]} Qg6 {[%emt 0:01:24]} 34. h3 {[%emt 0:03:32]} Rf6 {[%emt 0:01:20]} 35. b4 {[%emt 0:00:52]} Qf7 {[%emt 0:01:01]} 36. c4 {[%emt 0:06:34]} b5 {[%emt 0:01:28]} 37. axb5 {[%emt 0:02:06]} axb5 {[%emt 0:00:05]} 38. Rxb5 {[%emt 0:00:25]} Rxc4 {[%emt 0:00:08]} 39. Rb8+ {[%emt 0:00:08]} Kg7 {[%emt 0:00:11]} 40. Rg3+ {[%emt 0:00:14]} Rg6 {[%emt 0:00:17]} 41. Qxd6 {[%emt 0:30:17]} f4 {[%emt 0:33:48]} 42. Rxg6+ {[%emt 0:00:11]} 1-0

[Event "Irish New Year Events-GM 2020"]
[Site "Dublin"]
[Date "2020.01.05"]
[Round "6.3"]
[White "Pajeken, Jakob Leon"]
[Black "Brady, Stephen"]
[Result "1-0"]
[ECO "A47"]
[WhiteElo "2327"]
[BlackElo "2285"]
[Annotator "NA"]
[PlyCount "45"]
[EventDate "2020.01.02"]
[EventType "tourn"]
[EventCountry "IRL"]
[SourceTitle "playchess.com"]
[Source "ChessBase"]
[SourceQuality "1"]
[TimeControl "40/5400+30:1800+30"]

1. d4 {[%emt 0:00:00]} Nf6 {[%emt 0:00:00]} 2. Nf3 {[%emt 0:00:00]} e6 {[%emt 0:00:00]} 3. Bf4 {[%emt 0:00:00]} b6 {[%emt 0:00:00]} 4. Nbd2 {[%emt 0:00:23]} Bb7 {[%emt 0:00:08]} 5. e3 {[%emt 0:00:34]} Be7 {[%emt 0:00:24]} 6. h3 {[%emt 0:00:23]} O-O {[%emt 0:00:28]} 7. Bd3 {[%emt 0:01:02]} c5 {[%emt 0:00:14]} 8. c3 {[%emt 0:00:34]} Nc6 {[%emt 0:00:13]} 9. O-O {[%emt 0:01:10]} d6 {[%emt 0:11:19]} 10. Qe2 {[%emt 0:01:55]} Re8 {[%emt 0:09:37]} 11. Rfd1 {[%emt 0:04:50]} cxd4 {[%emt 0:03:20]} 12. exd4 {[%emt 0:01:15]} Bf8 {[%emt 0:00:33]} 13. Nc4 {[%emt 0:10:52]} Ba6 {[%emt 0:18:44]} 14. Bg5 {[%emt 0:07:01]} d5 {[%emt 0:00:26]} 15. Nce5 {[%emt 0:01:06]} Bxd3 {[%emt 0:00:09]} 16. Rxd3 {[%emt 0:00:42]} Qc7 {[%emt 0:05:46]} 17. Nxc6 {[%emt 0:00:36]} Qxc6 {[%emt 0:00:07]} 18. Ne5 {[%emt 0:00:25]} Qc7 {[%emt 0:01:02]} 19. Bxf6 {[%emt 0:00:24]} gxf6 {[%emt 0:00:07]} 20. Rg3+ {[%emt 0:00:19]} Kh8 {[%emt 0:00:10]} 21. Qg4 {[%emt 0:02:36]} Bh6 {[%emt 0:00:08]} 22. Qh5 {[%emt 0:00:12]} fxe5 {[%emt 0:02:44]} 23. Qxh6 {[%emt 0:00:50]} 1-0

[Event "Irish New Year Events-GM 2020"]
[Site "Dublin"]
[Date "2020.01.05"]
[Round "6.5"]
[White "Fitzsimons, David"]
[Black "Astaneh Lopez, Alex"]
[Result "0-1"]
[ECO "B23"]
[WhiteElo "2317"]
[BlackElo "2432"]
[Annotator "ChessBase"]
[PlyCount "126"]
[EventDate "2020.01.02"]
[EventType "tourn"]
[EventCountry "IRL"]
[SourceTitle "playchess.com"]
[Source "ChessBase"]
[SourceQuality "1"]
[TimeControl "40/5400+30:1800+30"]

1. e4 {[%emt 1:30:30]} c5 {[%emt 0:03:29]} 2. Nc3 {[%emt 0:00:00]} Nc6 {[%emt 0:01:31]} 3. Bb5 {[%emt 0:00:00]} g6 {[%emt 0:00:46]} 4. Bxc6 {[%emt 0:00:00]} dxc6 {[%emt 0:01:08]} 5. d3 {[%emt 0:00:00]} Bg7 {[%emt 0:00:20]} 6. Be3 {[%emt 0:00:00]} b6 {[%emt 0:00:25]} 7. Qd2 {[%emt 0:00:00]} e5 {[%emt 0:01:40]} 8. f4 {[%emt 0:00:00]} Qh4+ {[%emt 0:06:43]} 9. g3 {[%emt 0:00:00]} Qg4 {[%emt 0:02:53]} 10. Nge2 {[%emt 0:00:00]} exf4 {[%emt 0:01:45]} 11. Bxf4 {[%emt 0:00:00]} Qe6 {[%emt 0:03:39]} 12. O-O {[%emt 0:00:00]} Nf6 {[%emt 0:04:02]} 13. Bh6 {[%emt 0:00:00]} O-O {[%emt 0:04:29]} 14. Bxg7 {[%emt 0:00:00]} Kxg7 {[%emt 0:00:03]} 15. Rf4 {[%emt 0:00:00]} Qe5 {[%emt 0:10:48]} 16. Raf1 {[%emt 0:00:00]} Ng8 {[%emt 0:00:43]} 17. Kg2 {[%emt 0:00:00]} Be6 {[%emt 0:02:14]} 18. Ng1 {[%emt 0:00:00]} f6 {[%emt 0:02:12]} 19. Nf3 {[%emt 0:00:00]} Qc7 {[%emt 0:00:05]} 20. Nd1 {[%emt 0:00:00]} Rae8 {[%emt 0:10:15]} 21. Qc3 {[%emt 0:00:00]} h6 {[%emt 0:00:51]} 22. h4 {[%emt 0:00:00]} Qd7 {[%emt 0:00:44]} 23. Kh2 {[%emt 0:00:00]} Rf7 {[%emt 0:00:08]} 24. Ne3 {[%emt 0:00:00]} Kh7 {[%emt 0:03:53]} 25. Nc4 {[%emt 0:00:00]} Ref8 {[%emt 0:01:54]} 26. Nfe5 {[%emt 0:01:32]} fxe5 {[%emt 0:00:52]} 27. Nxe5 {[%emt 0:00:13]} Rxf4 {[%emt 0:07:34]} 28. Nxd7 {[%emt 0:00:14]} Rxf1 {[%emt 0:00:02]} 29. Nxf8+ {[%emt 0:00:08]} Rxf8 {[%emt 0:00:03]} 30. Qe5 {[%emt 0:00:48]} Re8 {[%emt 0:01:01]} 31. Qc7+ {[%emt 0:01:31]} Re7 {[%emt 0:00:14]} 32. Qxc6 {[%emt 0:01:30]} Bxa2 {[%emt 0:00:31]} 33. Kg1 {[%emt 0:01:33]} Bb1 {[%emt 0:10:55]} 34. Qa4 {[%emt 0:00:25]} b5 {[%emt 0:04:46]} 35. Qb3 {[%emt 0:03:23]} a6 {[%emt 0:00:56]} 36. Kf2 {[%emt 0:00:04]} c4 {[%emt 0:01:06]} 37. dxc4 {[%emt 0:01:05]} Nf6 {[%emt 0:02:10]} 38. cxb5 {[%emt 0:01:14]} axb5 {[%emt 0:00:23]} 39. Qb4 {[%emt 0:01:04]} Re5 {[%emt 0:03:03]} 40. Qd4 {[%emt 0:01:04]} Bxc2 {[%emt 0:00:48]} 41. Qa7+ {[%emt 0:30:30]} Kg8 {[%emt 0:30:40]} 42. Qb8+ {[%emt 0:00:42]} Re8 {[%emt 0:00:29]} 43. Qxb5 {[%emt 0:00:26]} Bxe4 {[%emt 0:00:12]} 44. Kg1 {[%emt 0:00:34]} Kf7 {[%emt 0:03:25]} 45. g4 {[%emt 0:00:27]} Rd8 {[%emt 0:02:12]} 46. g5 {[%emt 0:00:45]} hxg5 {[%emt 0:00:10]} 47. hxg5 {[%emt 0:00:17]} Nd5 {[%emt 0:01:08]} 48. Qc4 {[%emt 0:00:50]} Bf5 {[%emt 0:00:16]} 49. Kf2 {[%emt 0:00:03]} Be6 {[%emt 0:00:14]} 50. Qc5 {[%emt 0:00:13]} Rd7 {[%emt 0:00:09]} 51. Kf3 {[%emt 0:00:23]} Rb7 {[%emt 0:01:25]} 52. Qd4 {[%emt 0:00:04]} Rb3+ {[%emt 0:00:13]} 53. Kf2 {[%emt 0:00:18]} Ke7 {[%emt 0:01:08]} 54. Qg7+ {[%emt 0:00:19]} Bf7 {[%emt 0:00:01]} 55. Qe5+ {[%emt 0:00:06]} Kd7 {[%emt 0:00:07]} 56. Ke2 {[%emt 0:00:21]} Re3+ {[%emt 0:00:26]} 57. Kf2 {[%emt 0:05:54]} Rb3 {[%emt 0:05:11]} 58. Qg7 {[%emt 0:00:30]} Ke6 {[%emt 0:00:30]} 59. Qd4 {[%emt 0:00:30]} Kd6 {[%emt 0:00:30]} 60. Ke2 {[%emt 0:00:30]} Be6 61. Kf2 {[%emt 0:00:30]} Bf7 62. Qg7 Ke6 {[%emt 0:01:30]} 63. Qd4 {[%emt 0:01:00]} Kf5 {[%emt 0:00:30]} 0-1

[Event "Irish New Year Events-GM 2020"]
[Site "Dublin"]
[Date "2020.01.05"]
[Round "7.1"]
[White "Collins, Sam E."]
[Black "Fitzsimons, David"]
[Result "1-0"]
[ECO "B52"]
[WhiteElo "2446"]
[BlackElo "2317"]
[Annotator "ChessBase"]
[PlyCount "37"]
[EventDate "2020.01.02"]
[EventType "tourn"]
[EventCountry "IRL"]
[SourceTitle "playchess.com"]
[Source "ChessBase"]
[SourceQuality "1"]
[TimeControl "5400+30"]

1. e4 {[%emt 0:00:00]} c5 {[%emt 0:00:00]} 2. Nf3 {[%emt 0:01:04]} d6 {[%emt 0:00:00]} 3. Bb5+ {[%emt 0:02:19]} Bd7 {[%emt 0:00:03]} 4. Bxd7+ {[%emt 0:00:30]} Nxd7 {[%emt 0:00:14]} 5. O-O {[%emt 0:00:35]} Ngf6 {[%emt 0:00:10]} 6. Re1 {[%emt 0:00:39]} e6 {[%emt 0:00:49]} 7. b3 {[%emt 0:01:39]} Be7 {[%emt 0:01:41]} 8. Bb2 {[%emt 0:00:29]} O-O {[%emt 0:01:42]} 9. d4 {[%emt 0:02:05]} cxd4 {[%emt 0:00:50]} 10. Bxd4 {[%emt 0:03:23]} b5 {[%emt 0:03:53]} 11. Nbd2 {[%emt 0:02:18]} Qc7 {[%emt 0:01:54]} 12. c4 {[%emt 0:02:25]} Qb7 {[%emt 0:04:36]} 13. Qe2 {[%emt 0:07:34]} bxc4 {[%emt 0:05:32]} 14. Nxc4 {[%emt 0:03:19]} a5 {[%emt 0:01:52]} 15. Rab1 {[%emt 0:10:24]} Rfc8 {[%emt 0:02:48]} 16. e5 {[%emt 0:11:00]} dxe5 {[%emt 0:00:40]} 17. Nfxe5 {[%emt 0:01:20]} Rd8 {[%emt 0:11:34]} 18. Nxf7 {[%emt 0:47:57]} Rdc8 19. Nfe5 1-0

[Event "Irish New Year Events-GM 2020"]
[Site "Dublin"]
[Date "2020.01.05"]
[Round "7.3"]
[White "Ryan, Joseph"]
[Black "Astaneh Lopez, Alex"]
[Result "0-1"]
[ECO "C54"]
[WhiteElo "2293"]
[BlackElo "2432"]
[Annotator "RC"]
[PlyCount "144"]
[EventDate "2020.01.02"]
[EventType "tourn"]
[EventCountry "IRL"]
[SourceTitle "playchess.com"]
[Source "ChessBase"]
[SourceQuality "1"]
[TimeControl "5400+30"]

1. e4 {[%emt 0:00:00]} e5 {[%emt 0:08:37]} 2. Nf3 {[%emt 0:00:00]} Nc6 {[%emt 0:00:11]} 3. Bc4 {[%emt 0:00:01]} Bc5 {[%emt 0:00:09]} 4. O-O {[%emt 0:00:18]} Nf6 {[%emt 0:00:04]} 5. d3 {[%emt 0:00:09]} d6 {[%emt 0:00:21]} 6. c3 {[%emt 0:00:10]} O-O {[%emt 0:00:34]} 7. Bb3 {[%emt 0:00:50]} a6 {[%emt 0:01:22]} 8. h3 {[%emt 0:00:35]} h6 {[%emt 0:00:58]} 9. Re1 {[%emt 0:00:34]} Re8 {[%emt 0:01:16]} 10. Nbd2 {[%emt 0:01:41]} Be6 {[%emt 0:00:11]} 11. Nf1 {[%emt 0:00:39]} d5 {[%emt 0:07:33]} 12. Ng3 {[%emt 0:19:03]} dxe4 {[%emt 0:02:59]} 13. Nxe4 {[%emt 0:01:14]} Nxe4 {[%emt 0:12:32]} 14. dxe4 {[%emt 0:02:07]} Qxd1 {[%emt 0:03:04]} 15. Bxd1 {[%emt 0:03:59]} Rad8 {[%emt 0:01:20]} 16. Bc2 {[%emt 0:08:27]} Bb6 {[%emt 0:08:00]} 17. Nd2 {[%emt 0:08:00]} Na5 {[%emt 0:16:45]} 18. Nf1 {[%emt 0:01:45]} Nc4 {[%emt 0:01:01]} 19. b3 {[%emt 0:00:59]} Nd6 {[%emt 0:00:07]} 20. a4 {[%emt 0:03:12]} a5 {[%emt 0:06:27]} 21. Ba3 {[%emt 0:01:33]} Rd7 {[%emt 0:06:01]} 22. Rad1 {[%emt 0:05:06]} Red8 {[%emt 0:01:16]} 23. Re2 {[%emt 0:09:07]} Ne8 {[%emt 0:00:30]} 24. Red2 {[%emt 0:00:30]} Rxd2 {[%emt 0:00:30]} 25. Rxd2 {[%emt 0:00:30]} Ra8 {[%emt 0:05:08]} 26. Rd1 {[%emt 0:01:11]} Nf6 {[%emt 0:02:25]} 27. Nd2 {[%emt 0:00:13]} Nh5 {[%emt 0:03:14]} 28. Kf1 {[%emt 0:02:02]} Nf4 {[%emt 0:01:43]} 29. Nf3 {[%emt 0:01:35]} f6 {[%emt 0:00:06]} 30. Ne1 {[%emt 0:01:58]} Bf7 {[%emt 0:01:15]} 31. Nd3 {[%emt 0:02:52]} Ne6 {[%emt 0:00:11]} 32. Ke2 {[%emt 0:01:56]} Bh5+ {[%emt 0:04:26]} 33. f3 {[%emt 0:00:25]} Kf7 {[%emt 0:00:28]} 34. Nb2 {[%emt 0:04:19]} Ke8 {[%emt 0:00:24]} 35. Nc4 {[%emt 0:01:01]} Bc5 {[%emt 0:00:18]} 36. Bc1 {[%emt 0:08:10]} Bf7 {[%emt 0:01:31]} 37. g3 {[%emt 0:01:11]} Ng5 {[%emt 0:02:53]} 38. Nxa5 {[%emt 0:02:29]} Rxa5 {[%emt 0:00:12]} 39. Bxg5 {[%emt 0:00:36]} hxg5 {[%emt 0:01:13]} 40. b4 {[%emt 0:00:06]} Bc4+ {[%emt 0:00:26]} 41. Kd2 {[%emt 0:02:33]} Ra8 {[%emt 0:00:10]} 42. bxc5 {[%emt 0:00:23]} Rd8+ {[%emt 0:00:03]} 43. Ke3 {[%emt 0:01:22]} Rxd1 {[%emt 0:00:10]} 44. Bxd1 {[%emt 0:00:03]} Kd7 {[%emt 0:00:03]} 45. f4 {[%emt 0:03:42]} gxf4+ {[%emt 0:00:20]} 46. gxf4 {[%emt 0:00:05]} Kc6 {[%emt 0:00:38]} 47. fxe5 {[%emt 0:00:07]} fxe5 {[%emt 0:00:01]} 48. h4 {[%emt 0:03:31]} Kxc5 {[%emt 0:00:18]} 49. Kd2 {[%emt 0:00:24]} Kb6 {[%emt 0:01:03]} 50. Bc2 {[%emt 0:00:49]} Ka5 {[%emt 0:00:19]} 51. Kc1 {[%emt 0:00:09]} Bf7 {[%emt 0:03:17]} 52. Kb2 {[%emt 0:00:14]} Be8 {[%emt 0:00:02]} 53. Ka3 {[%emt 0:00:09]} Bc6 {[%emt 0:00:21]} 54. Bd3 {[%emt 0:01:47]} Bxa4 {[%emt 0:00:09]} 55. Kb2 {[%emt 0:00:53]} Kb6 {[%emt 0:01:51]} 56. Kc1 {[%emt 0:00:23]} Kc5 {[%emt 0:00:07]} 57. Kd2 {[%emt 0:00:07]} Be8 {[%emt 0:00:26]} 58. Be2 {[%emt 0:00:56]} Bg6 {[%emt 0:00:01]} 59. Ke3 {[%emt 0:00:09]} b5 {[%emt 0:00:49]} 60. h5 {[%emt 0:00:23]} Bh7 {[%emt 0:00:25]} 61. Kf3 {[%emt 0:00:55]} b4 {[%emt 0:00:13]} 62. cxb4+ {[%emt 0:00:05]} Kd4 {[%emt 0:00:25]} 63. Kg4 {[%emt 0:00:27]} Kxe4 {[%emt 0:01:16]} 64. Kg5 {[%emt 0:00:09]} Ke3 {[%emt 0:00:28]} 65. Bg4 {[%emt 0:00:49]} e4 {[%emt 0:00:26]} 66. h6 {[%emt 0:00:44]} gxh6+ {[%emt 0:00:10]} 67. Kxh6 {[%emt 0:00:06]} Kf4 {[%emt 0:00:08]} 68. Be2 {[%emt 0:00:36]} Bf5 {[%emt 0:00:05]} 69. Kh5 {[%emt 0:01:09]} Bh3 {[%emt 0:01:49]} 70. Kg6 {[%emt 0:00:37]} Bg4 {[%emt 0:00:16]} 71. Bc4 {[%emt 0:00:17]} e3 {[%emt 0:00:09]} 72. Kf6 {[%emt 0:00:53]} e2 {[%emt 0:00:07]} 0-1